Cogmind - Beta 16 @@@ ROGUE MODE // 2025.12.01 @ 22:19:01 Player: DietSnapple Result: Destroyed by X-67 Chaingunner with Minigun Performance ------------- Evolutions (3) 1500 Regions Visited (9) 1800 Robots Destroyed (49) 245 Value Destroyed (1077) 1077 Prototype IDs (33) 660 Alien Tech Used (0) 0 Bonus (912) 912 TOTAL SCORE: 6194 Bonus ------- Follower Combat Kills 120 Entered DSFs 500 Aligned with FarCom 300 Friendly Fire -8 Cogmind --------- Core Integrity 0/700 Matter 46/300 Energy 100/100 System Corruption 9% Temperature Cool (9) Movement Core (200) Ox3 Location -7/DSF Parts ------- > --- POWER (1) -------- (None) > --- PROPULSION (4) --- (None) > --- UTILITY (6) ------ Medium Storage Unit > --- WEAPON (2) ------- (None) > --- INVENTORY (10) --- Nuclear Core Cooled VTOL Module ECM Suite Hacking Suite Component Analysis Suite Heavy Rocket Launcher Field Lobotomy Kit (4) Powered Hammer Peak State ------------ > --- POWER ------------ Nuclear Core > --- PROPULSION ------- Gravmag System Gravmag System Cooled Airjet Cooled Airjet > --- UTILITY ---------- Medium Storage Unit Transmission Jammer Improved Medium Armor Plating Hacking Suite Hacking Suite Hacking Suite > --- WEAPON ----------- High-powered Shotgun Spear > --- INVENTORY -------- Light Nuclear Core Micro Nuclear Core Gravmag System Gravmag System ECM Suite Reaction Control System Hacking Suite Component Analysis Suite Field Lobotomy Kit Powered Hammer [Rating: 50] Favorites ----------- Power Ion Engine Engine Ion Engine Power Core Nuclear Core Propulsion Wheel Leg Aluminum Leg Wheel Wheel Hover Unit Cooled Airjet Flight Unit Xenon Bombardment Thruster Utility Hacking Suite Device ECM Suite Storage Medium Storage Unit Hackware Hacking Suite Protection Light Armor Plating Weapon Assault Rifle Ballistic Gun Assault Rifle Ballistic Cannon Assault Cannon Launcher Rocket Launcher Special Weapon Field Lobotomy Kit Impact Weapon Powered Hammer Slashing Weapon Chainsword Piercing Weapon Spear Build | -11 -10 -10 -10 -9 -8 -7 -7 -7 -7 ------- Run | Yrd Mat Min Exi Min Mat Fac Was Fac DSF Slots Evolved 6 | . . . . . 4 2 . . . Power . | . . . . . . . . . . Propulsion 2 | . . . . . 1 1 . . . Utility 4 | . . . . . 3 1 . . . Weapon . | . . . . . . . . . . Parts Attached 59 | 7 6 . . 10 19 16 . . 1 Power 8 | 1 . . . 2 3 2 . . . Engine 5 | 1 . . . 2 1 1 . . . Core 3 | . . . . . 2 1 . . . Reactor . | . . . . . . . . . . Propulsion 20 | 2 2 . . 4 6 6 . . . Treads . | . . . . . . . . . . Leg 2 | 2 . . . . . . . . . Wheel 6 | . 2 . . 4 . . . . . Hover 7 | . . . . . 5 2 . . . Flight 5 | . . . . . 1 4 . . . Utility 17 | 2 2 . . 1 5 6 . . 1 Device 5 | 1 . . . . 2 1 . . 1 Storage 3 | 1 1 . . . . 1 . . . Processor . | . . . . . . . . . . Hackware 4 | . . . . . 2 2 . . . Protection 5 | . 1 . . 1 1 2 . . . Artifact . | . . . . . . . . . . Weapon 14 | 2 2 . . 3 5 2 . . . Energy Gun . | . . . . . . . . . . Energy Cannon . | . . . . . . . . . . Ballistic Gun 6 | 2 2 . . 1 1 . . . . Ballistic Cannon 2 | . . . . 1 1 . . . . Launcher 1 | . . . . . 1 . . . . Special Weapon 1 | . . . . 1 . . . . . Impact Weapon 2 | . . . . . 2 . . . . Slashing Weapon 1 | . . . . . . 1 . . . Piercing Weapon 1 | . . . . . . 1 . . . Special Melee Weapon . | . . . . . . . . . . Unidentified Prototypes 5 | . . . . . 4 1 . . . Parts Lost 28 | . 3 . . 5 6 3 . . 11 Power 3 | . . . . 1 1 . . . 1 Propulsion 8 | . 1 . . 2 1 . . . 4 Utility 11 | . 1 . . 1 2 2 . . 5 Weapon 6 | . 1 . . 1 2 1 . . 1 Highest Loss Streak 8 | . 3 . . 2 3 1 . . 8 To Critical Strikes . | . . . . . . . . . . Average Backups 8 | 2 7 10 10 9 8 9 9 9 8 Power . | . 1 1 1 . . 1 1 1 1 Propulsion 1 | 1 1 1 1 . 1 1 1 1 1 Utility 4 | . 3 7 7 5 3 4 4 4 3 Weapon 1 | . . . . 1 2 1 2 2 2 Tool/Special . | . . . . . . . . . . Unused Backups 14 | . . . 1 3 1 5 . . 4 Power 1 | . . . . . . 1 . . . Propulsion 3 | . . . . . . 2 . . 1 Utility 5 | . . . . 2 . 1 . . 2 Weapon 4 | . . . . 1 1 1 . . 1 Tool/Special 1 | . . . 1 . . . . . . Average Slot Usage (%) 94 | . 98 100 100 91 93 92 84 84 56 Engine 8 | . 14 14 14 12 2 . . . . Core 2 | . . . . . 6 6 7 7 4 Leg 5 | . 18 . . . . . . . . Wheel 13 | . 8 28 28 24 13 . . . . Hover 4 | . . . . . 10 15 . . . Flight 3 | . . . . . 2 13 30 30 16 Device 5 | . 9 . . . 8 7 7 7 4 Storage 11 | . 14 14 14 14 9 7 7 7 7 Hackware 7 | . . . . . 17 22 15 15 10 Protection 7 | . 3 14 14 14 5 5 7 7 4 Ballistic Gun 17 | . 27 28 28 19 4 4 . . . Ballistic Cannon 1 | . . . . 5 3 . . . . Peak Build Rating 50 | 7 8 8 9 16 36 50 42 42 42 Average Rating 18 | 4 7 8 8 10 28 44 42 42 27 On Entrance 20 | . 7 8 8 9 12 32 42 42 42 Avg Prop Armor Cover (%) 1 | . . . . . 1 . . . . Naked Turns . | . . . . . . . . . . Heaviest Build 31 | 15 21 21 21 26 28 31 24 24 24 Greatest Support 34 | 20 26 26 26 32 30 34 24 24 24 Greatest Overweight (x) 9 | . 4 . . 1 2 9 . . 4 Average Overweight (x) . | . . . . . . . . . . Largest Inventory Capacity 10 | 8 10 10 10 10 10 10 10 10 10 Average Capacity 9 | 7 8 10 10 10 10 10 10 10 10 Most Carried 10 | 4 10 10 10 10 10 10 9 9 9 Average Carried 8 | 2 7 10 10 9 8 9 9 9 8 Final Capacity 10 | 8 10 10 10 10 10 10 10 10 10 Final Carried 10 | 4 10 10 10 9 10 9 9 9 8 Class Distribution -------------------- 63% | Mutant 18% | Hacker-Mutant 10% | Scavenger-Mutant 7% | Hacker-Sprinter Dominant Class ---------------- Mutant | -10/Materials Mutant | -10/Mines Mutant | -10/Exiles Mutant | -9/Mines Scavenger-Mutant | -8/Materials Hacker-Mutant | -7/Factory Hacker-Sprinter | -7/Waste Hacker-Sprinter | -7/Factory Hacker-Mutant | -7/DSF Resources | -11 -10 -10 -10 -9 -8 -7 -7 -7 -7 ----------- Run | Yrd Mat Min Exi Min Mat Fac Was Fac DSF Matter Collected 1467 | 251 440 46 . 289 391 50 . . . Remotely . | . . . . . . . . . . Salvage Created 1310 | 121 384 19 . 83 621 82 . . . Parts 90 | 12 38 3 . 4 27 6 . . . Haulers Intercepted 4 | . 1 . . . 2 1 . . . Recyclers Shooed 3 | . 3 . . . . . . . . Parts Field Recycled . | . . . . . . . . . . Retrieved Matter . | . . . . . . . . . . Parts Self-Destructed . | . . . . . . . . . . Prevented . | . . . . . . . . . . Parts Restored . | . . . . . . . . . . Kills | -11 -10 -10 -10 -9 -8 -7 -7 -7 -7 ------- Run | Yrd Mat Min Exi Min Mat Fac Was Fac DSF Combat Hostiles Destroyed 38 | . 12 . . 9 14 3 . . . Guns 30 | . 12 . . 6 9 3 . . . Cannons 4 | . . . . 3 1 . . . . Classes Destroyed 12 | 3 5 . . 1 3 . . . . Worker 3 | 2 . . . . 1 . . . . Builder 1 | . 1 . . . . . . . . Tunneler 2 | 1 . 1 . . . . . . . Hauler 4 | . 1 . . . 2 1 . . . Recycler 2 | 1 . . . . 1 . . . . Operator 5 | . 3 . . . 1 1 . . . Watcher 1 | . . . . . 1 . . . . Swarmer 15 | . 9 . . . 4 2 . . . Grunt 10 | . 3 . . 2 5 . . . . Sentry 2 | . . . . . 2 . . . . Hunter 4 | . . . . . 3 1 . . . Assembled 7 | . . . . 7 . . . . . Best Kill Streak 4 | 3 4 1 . 3 4 2 . . . Combat Bots Only 4 | . 4 . . 3 4 2 . . . Max Kills in Single Turn 1 | 1 1 1 . 1 1 1 . . . Gunslinging . | . . . . . . . . . . Exploded . | . . . . . . . . . . Melee . | . . . . . . . . . . Uniques/NPCs Destroyed . | . . . . . . . . . . Combat | -11 -10 -10 -10 -9 -8 -7 -7 -7 -7 -------- Run | Yrd Mat Min Exi Min Mat Fac Was Fac DSF Hostile Shots Fired 292 | . 75 4 . 29 81 29 . . 74 Missed 72 | . 13 2 . 10 21 7 . . 19 Hits 220 | . 62 2 . 19 60 22 . . 55 Melee 2 | . . . . 2 . . . . . Projectile 218 | . 62 2 . 17 60 22 . . 55 Critical Strikes 5 | . . . . . 3 . . . 2 Damage Taken 3620 | . 520 16 . 428 865 383 . . 1408 Core 970 | . 53 10 . 52 155 45 . . 655 Absorbed by Shields 63 | . . . . . . . . . 63 Regen/Repaired (Parts) 17 | . . . . . . 17 . . . Core Remaining (%) 75 | 100 . . . 54 71 . . . . Volleys Fired 192 | 10 70 4 . 30 44 34 . . . Largest 2 | 2 2 2 . 2 1 1 . . . Hottest 61 | 40 40 40 . 61 37 25 . . . Shots Fired 283 | 20 126 8 . 51 44 34 . . . Gun 252 | 20 126 8 . 23 41 34 . . . Cannon 30 | . . . . 27 3 . . . . Launcher . | . . . . . . . . . . Special 1 | . . . . 1 . . . . . Kinetic 282 | 20 126 8 . 50 44 34 . . . Thermal . | . . . . . . . . . . Explosive . | . . . . . . . . . . Electromagnetic . | . . . . . . . . . . Robot Hit Streak 14 | 4 14 2 . 8 8 7 . . . Robot Miss Streak 7 | 2 4 3 . 7 5 6 . . . Penetration Max . | . . . . . . . . . . Secondary Targets . | . . . . . . . . . . Shots Hit Robots 207 | 12 83 3 . 28 54 27 . . . Core Hits 109 | 4 26 1 . 28 38 12 . . . Critical Kills . | . . . . . . . . . . Critical Parts Destroyed 5 | . . . . . 5 . . . . Critical Strikes 6 | . . . . . 6 . . . . Blast 1 | . . . . . 1 . . . . Smash 5 | . . . . . 5 . . . . Melee Attacks 21 | . . . . . 21 . . . . Impact 21 | . . . . . 21 . . . . Slashing . | . . . . . . . . . . Piercing . | . . . . . . . . . . Sneak Attacks 4 | . . . . . 4 . . . . Combat Hostiles . | . . . . . . . . . . Follow-up Attacks . | . . . . . . . . . . Damage Inflicted 3639 | 156 1073 45 . 445 1475 443 . . 2 Guns 2621 | 156 1052 45 . 292 633 443 . . . Cannons 164 | . . . . 128 36 . . . . Explosions . | . . . . . . . . . . Melee 806 | . . . . . 806 . . . . Ramming 48 | . 21 . . 25 . . . . 2 Kinetic 2785 | 156 1052 45 . 420 669 443 . . . Thermal . | . . . . . . . . . . Explosive . | . . . . . . . . . . Electromagnetic . | . . . . . . . . . . Impact 806 | . . . . . 806 . . . . Slashing . | . . . . . . . . . . Piercing . | . . . . . . . . . . Highest Corruption 9 | . . . . 8 . . 9 9 9 Average Corruption 7 | . . . . 7 . . 9 9 9 Corruption Purged . | . . . . . . . . . . Corruption Blocked . | . . . . . . . . . . Effects 24 | . . . . 20 . . . . 4 Message Errors 9 | . . . . 7 . . . . 2 Matter Fused 5 | . . . . 3 . . . . 2 Heat Flow Errors 2 | . . . . 2 . . . . . Energy Discharges 1 | . . . . 1 . . . . . Data Loss (minor) 1 | . . . . 1 . . . . . Data Loss (major) 1 | . . . . 1 . . . . . Misfires 3 | . . . . 3 . . . . . Alerts 1 | . . . . 1 . . . . . Weapon Failures 1 | . . . . 1 . . . . . Overload Shots . | . . . . . . . . . . Overflow Damage 409 | . . . . 7 402 . . . . Projectiles 7 | . . . . 7 . . . . . Explosions . | . . . . . . . . . . Melee 402 | . . . . . 402 . . . . Knockbacks 6 | . 1 . . 1 4 . . . . Impact 5 | . 1 . . . 4 . . . . Kinetic 1 | . . . . 1 . . . . . Secondary . | . . . . . . . . . . Self-Inflicted Damage 14 | . 3 . . 11 . . . . . Shots . | . . . . . . . . . . Rammed 8 | . 1 . . 4 . . . . 3 Targets Rammed 13 | . 6 . . 4 . . . . 3 Kicked 5 | . 5 . . . . . . . . Crushed . | . . . . . . . . . . Highest Temperature 379 | . 6 6 . 129 26 379 2 . . Average Temperature 65 | . 4 4 . 24 8 132 2 . . Received Heat Transfer 585 | . 90 . . 153 216 . . . 126 Effects 1 | . . . . . . 1 . . . Shutdowns 1 | . . . . . . 1 . . . Siege Activations . | . . . . . . . . . . Martial Activations . | . . . . . . . . . . Shielding Activations . | . . . . . . . . . . Robots Disrupted . | . . . . . . . . . . Combat Hostiles . | . . . . . . . . . . Robots Corrupted 7 | . . . . . 7 . . . . Combat Hostiles 4 | . . . . . 4 . . . . Parts Fried 8 | . . . . . 8 . . . . Impact Corruptions 13 | . . . . . 13 . . . . Robots Melted . | . . . . . . . . . . Combat Hostiles . | . . . . . . . . . . Parts Melted . | . . . . . . . . . . Heat Transferred . | . . . . . . . . . . Parts Sabotaged . | . . . . . . . . . . Parts Stolen . | . . . . . . . . . . Parts Stripped . | . . . . . . . . . . Power Chain Reactions . | . . . . . . . . . . Alert | -11 -10 -10 -10 -9 -8 -7 -7 -7 -7 ------- Run | Yrd Mat Min Exi Min Mat Fac Was Fac DSF Maximum Alert Level . | . . . . . . . . . . Low Security (%) 100 | 100 100 100 . 100 100 100 100 100 100 Level 1 . | . . . . . . . . . . Level 2 . | . . . . . . . . . . Level 3 . | . . . . . . . . . . Level 4 . | . . . . . . . . . . Level 5 . | . . . . . . . . . . High Security . | . . . . . . . . . . Max Security . | . . . . . . . . . . Peak Influence 140 | 10 140 74 . 63 86 95 5 . 15 Initial 22 | . . . . . . 22 5 . . Average 24 | 1 41 15 . 9 28 19 4 . 2 Influence Increases 1333 | 20 404 79 . 192 417 191 . . 30 Destroy 0b10 Robot/C 740 | . 240 60 . 100 280 60 . . . Destroy 0b10 Robot/NC 90 | 20 25 5 . . 30 10 . . . Destroy Leader 180 | . 52 10 . 20 76 22 . . . Allied During Kill 12 | . . 4 . 8 . . . . . Successful Hack 66 | . 12 . . . 15 39 . . . Disable Machine 15 | . 15 . . . . . . . . Destroy Structure 5 | . . . . 4 1 . . . . Partial Spotted 15 | . . . . . 15 . . . . Lose Combat Pursuer 210 | . 60 . . 60 . 60 . . 30 Influence Decreases 1328 | 20 404 79 . 192 367 226 15 . 25 Entered New Map 38 | . . . . . . 28 10 . . Time Decay 1111 | 20 384 79 . 133 312 178 5 . . Lost Part 130 | . 20 . . 10 55 20 . . 25 Lost Ally 49 | . . . . 49 . . . . . Squads Dispatched 12 | . 2 . . 2 4 4 . . . Investigation 3 | . . . . 1 . 2 . . . Extermination 1 | . . . . . . 1 . . . Reinforcement 7 | . 2 . . 1 3 1 . . . Assault . | . . . . . . . . . . Garrison 1 | . . . . . 1 . . . . Intercept . | . . . . . . . . . . Searches Triggered . | . . . . . . . . . . Construction Impeded 1 | . . . . 1 . . . . . Haulers Reinforced . | . . . . . . . . . . Active Scanning Responses . | . . . . . . . . . . Cargo Convoy Interrupts . | . . . . . . . . . . Stealth | -11 -10 -10 -10 -9 -8 -7 -7 -7 -7 --------- Run | Yrd Mat Min Exi Min Mat Fac Was Fac DSF Distress Signals 9 | . 4 . . . 4 1 . . . Communications Jammed . | . . . . . . . . . . Distress Signals . | . . . . . . . . . . Times Spotted 112 | . 35 3 . 16 36 11 3 . 8 Peak Tracking Total 7 | . 7 3 . 5 6 6 3 . 7 Tactical Retreats 18 | . 3 . . 4 7 2 . . 2 ECM-based Alert Blocks 11 | . . . . . 11 . . . . Traps | -11 -10 -10 -10 -9 -8 -7 -7 -7 -7 ------- Run | Yrd Mat Min Exi Min Mat Fac Was Fac DSF Traps Triggered 4 | . . . . . . 2 . . 2 Indirectly . | . . . . . . . . . . Trap Hack Attempts . | . . . . . . . . . . Triggered . | . . . . . . . . . . Disarmed . | . . . . . . . . . . Reprogrammed . | . . . . . . . . . . Reused . | . . . . . . . . . . Traps Extracted . | . . . . . . . . . . Installed . | . . . . . . . . . . Triggered . | . . . . . . . . . . Machines | -11 -10 -10 -10 -9 -8 -7 -7 -7 -7 ---------- Run | Yrd Mat Min Exi Min Mat Fac Was Fac DSF Machines Disabled 1 | . 1 . . . . . . . . Max in Single Turn 1 | . 1 . . . . . . . . Machines Repaired . | . . . . . . . . . . Machines Dismantled . | . . . . . . . . . . Machines Sabotaged . | . . . . . . . . . . Overloaded Fab Kills . | . . . . . . . . . . Hacking | -11 -10 -10 -10 -9 -8 -7 -7 -7 -7 --------- Run | Yrd Mat Min Exi Min Mat Fac Was Fac DSF Machines Accessed 22 | . 5 . 1 1 5 9 . 1 . Terminals 16 | . 5 . . . 5 5 . 1 . Fabricators 1 | . . . . . . 1 . . . Repair Stations 1 | . . . . . . 1 . . . Recycling Units 1 | . . . . . . 1 . . . Scanalyzers 1 | . . . . . . 1 . . . Garrison Access . | . . . . . . . . . . Total Hacks 48 | . 15 . 1 1 14 16 . 1 . Successful 31 | . 9 . 1 1 8 11 . 1 . Failed 16 | . 6 . . . 6 4 . . . Catastrophic 3 | . . . . . 2 1 . . . Database Lockouts 1 | . . . . . . 1 . . . Manual 25 | . 6 . 1 . 10 8 . . . Terminals 40 | . 15 . . . 14 10 . 1 . Fabricators 2 | . . . . . . 2 . . . Repair Stations 2 | . . . . . . 2 . . . Recycling Units 1 | . . . . . . 1 . . . Scanalyzers 1 | . . . . . . 1 . . . Garrison Access . | . . . . . . . . . . Terminal Hacks 17 | . 6 . 1 1 4 4 . 1 . Part Schematic 1 | . . . . . . 1 . . . Prototype ID Bank 2 | . 2 . . . . . . . . Open Door 1 | . . . . 1 . . . . . Open DSF 1 | . . . . . . . . 1 . Branch Access Points 2 | . . . . . 1 1 . . . Fabricator Index 1 | . . . . . . 1 . . . Locate Traps 4 | . 2 . . . 2 . . . . Hauler Manifests 2 | . 1 . . . 1 . . . . Registered Components 1 | . 1 . . . . . . . . Registered Prototypes 1 | . . . . . . 1 . . . Proto ID Catalog 1 | . . . 1 . . . . . . Fabricator Hacks 2 | . . . . . . 2 . . . Load Schematic 1 | . . . . . . 1 . . . Build 1 | . . . . . . 1 . . . Repair Station Hacks 2 | . . . . . . 2 . . . Scan Component 1 | . . . . . . 1 . . . Repair 1 | . . . . . . 1 . . . Recycling Unit Hacks 1 | . . . . . . 1 . . . Report Inventory 1 | . . . . . . 1 . . . Scanalyzer . | . . . . . . . . . . Garrison Access Hacks . | . . . . . . . . . . Unauthorized Hacks 9 | . 3 . . . 4 2 . . . Terminals 9 | . 3 . . . 4 2 . . . Botnet 6 | . 3 . . . 1 2 . . . Operators 1 | . . . . . 1 . . . . Skim 2 | . . . . . 2 . . . . Fabricators . | . . . . . . . . . . Repair Stations . | . . . . . . . . . . Recycling Units . | . . . . . . . . . . Scanalyzers . | . . . . . . . . . . Garrison Access . | . . . . . . . . . . Data Cores Recovered 1 | . 1 . . . . . . . . Used . | . . . . . . . . . . Hacking Detections 16 | . 4 . . . 5 7 . . . Full Trace Events 2 | . . . . . . 2 . . . Feedback Events 1 | . . . . . . 1 . . . Hackware Fried 1 | . . . . . . 1 . . . Feedback Blocked . | . . . . . . . . . . Robot Schematics Acquired . | . . . . . . . . . . Robots Built . | . . . . . . . . . . Authchips . | . . . . . . . . . . Time . | . . . . . . . . . . Total Robot Build Rating . | . . . . . . . . . . Part Schematics Acquired 1 | . . . . . . 1 . . . Parts Built 1 | . . . . . . 1 . . . Authchips . | . . . . . . . . . . Time 67 | . . . . . . 67 . . . Total Part Build Rating 4 | . . . . . . 4 . . . Part Studies Acquired . | . . . . . . . . . . Parts Repaired 1 | . . . . . . 1 . . . Time 26 | . . . . . . 26 . . . Parts Recycled . | . . . . . . . . . . Recycled Matter . | . . . . . . . . . . Retrieved Matter . | . . . . . . . . . . Retrieved Components . | . . . . . . . . . . Parts Scanalyzed . | . . . . . . . . . . Part Schematics Acquired . | . . . . . . . . . . Parts Damaged . | . . . . . . . . . . Bothacking | -11 -10 -10 -10 -9 -8 -7 -7 -7 -7 ------------ Run | Yrd Mat Min Exi Min Mat Fac Was Fac DSF Used RIF Installer . | . . . . . . . . . . Robots Hacked . | . . . . . . . . . . Non-combat . | . . . . . . . . . . Combat . | . . . . . . . . . . Robot Hacks Applied . | . . . . . . . . . . Relay Couplers Released . | . . . . . . . . . . Fabnet Peak Effective % . | . . . . . . . . . . Robots Rewired . | . . . . . . . . . . Allies Hacked . | . . . . . . . . . . Hacks Repelled . | . . . . . . . . . . Allies | -11 -10 -10 -10 -9 -8 -7 -7 -7 -7 -------- Run | Yrd Mat Min Exi Min Mat Fac Was Fac DSF Total Allies 6 | . . 2 . 4 . . . . . Largest Group 3 | . . 2 1 3 . . . . . Highest-Rated Group 43 | . . 43 31 40 . . . . . Highest-Rated Ally 31 | . . 31 31 16 . . . . . Total Orders . | . . . . . . . . . . Ally Attacks 31 | . . 3 . 28 . . . . . Total Damage 339 | . . 62 . 277 . . . . . Kills 7 | . . 3 . 4 . . . . . Allies Corrupted 1 | . . . . 1 . . . . . Allies Melted . | . . . . . . . . . . Field Lobotomies 1 | . . . . 1 . . . . . Intel | -11 -10 -10 -10 -9 -8 -7 -7 -7 -7 ------- Run | Yrd Mat Min Exi Min Mat Fac Was Fac DSF Active Infowar (turns) 2514 | 17 970 . . . 967 560 . . . Sensors 1 | . . . . . 1 . . . . Seismic 987 | 17 970 . . . . . . . . Jamming 402 | . . . . . . 402 . . . ECM 1126 | . . . . . 967 159 . . . Robot Analysis Total . | . . . . . . . . . . Derelict Logs Recovered 3 | . . 1 . 2 . . . . . Drone Launches . | . . . . . . . . . . Drone Recoveries . | . . . . . . . . . . Exploration | -11 -10 -10 -10 -9 -8 -7 -7 -7 -7 ------------- Run | Yrd Mat Min Exi Min Mat Fac Was Fac DSF Turns Passed 5072 | 177 1459 383 227 954 968 770 20 2 112 Spaces Moved 4998 | 116 1010 398 251 752 887 1426 64 7 87 Core 12 | 8 1 . . . . 2 . . 1 Treads . | . . . . . . . . . . Legs 638 | 108 530 . . . . . . . . Wheels 2323 | . 479 398 251 752 443 . . . . Hover 1132 | . . . . . 444 688 . . . Flight 893 | . . . . . . 736 64 7 86 Fastest Speed 31 | 50 90 90 90 80 42 31 31 31 31 Average Speed 75 | 115 105 90 90 97 74 35 31 31 97 Slowest Speed 500 | 120 250 90 90 115 170 500 31 31 250 Overloaded Moves . | . . . . . . . . . . Propulsion Burnouts . | . . . . . . . . . . Robots Hopped 4 | . . . . . . 4 . . . Potential Cave-ins . | . . . . . . . . . . Cave-ins Triggered 1 | . . . . 1 . . . . . Exploration Rate (%) 63 | 6 97 75 63 90 59 27 73 . 84 Regions Visited 9 Branch Regions 3 Pre-discovered Areas 1 | . . . . 1 . . . . . Known Exits Taken 1 | . . . . . . . . 1 . Unknown Exits Taken 6 | 1 1 1 1 1 1 . . . . Scrap Searched 2 | . . 1 . 1 . . . . . Spaces Dug 1 | . . . . 1 . . . . . Terrain Destroyed 4 | . . . . 4 . . . . . Melee . | . . . . . . . . . . Projectile 4 | . . . . 4 . . . . . AOE . | . . . . . . . . . . Terrain Rammed . | . . . . . . . . . . Walls Destroyed . | . . . . . . . . . . Machines Disabled . | . . . . . . . . . . Actions | -11 -10 -10 -10 -9 -8 -7 -7 -7 -7 --------- Run | Yrd Mat Min Exi Min Mat Fac Was Fac DSF Total 5955 | 136 1276 415 252 926 1120 1650 63 6 111 Wait 562 | . 168 14 . 122 114 144 . . . Move 4982 | 115 1009 397 250 751 886 1418 63 6 87 Hop 4 | . . . . . . 4 . . . Pick Up 45 | 4 11 . 1 4 14 11 . . . Fast Attach 26 | 7 1 . . 2 7 9 . . . Attach 25 | . 3 . . 3 12 6 . . 1 Detach 9 | . 1 . . . 5 3 . . . Swap 15 | . 2 . . 5 4 4 . . . Drop 41 | . 5 . 1 5 13 17 . . . Fire 192 | 10 70 4 . 30 44 34 . . . Melee 21 | . . . . . 21 . . . . Ram 8 | . 1 . . 4 . . . . 3 Kick 5 | . 5 . . . . . . . . Crush . | . . . . . . . . . . Escape Stasis 20 | . . . . . . . . . 20 Rewire . | . . . . . . . . . . Trap . | . . . . . . . . . . Miscellaneous . | . . . . . . . . . . Route ------- -11/Scrapyard -10/Materials (discovered 4 exits: [*Mat x3] / [*Min]) -10/Mines -10/Exiles (discovered 2 exits: *Min x2) -9/Mines -8/Materials -7/Factory (discovered 2 exits: *Low x2) -7/Waste -7/Factory -7/DSF (discovered 1 exit: [*Fac]) History --------- Turn | Location | Event 11 | -11/Scrapyard | Discovered new exit (range 15) 178 | -11/Scrapyard | Entered Materials 315 | -10/Materials | Build established: Mutant 509 | -10/Materials | Discovered new exit (range 13) 1179 | -10/Materials | Lost 3 parts (1n1u1w) 1199 | -10/Materials | Discovered new exit (range 11) 1253 | -10/Materials | Discovered new exit (range 16) 1340 | -10/Materials | Discovered new exit (range 15) 1637 | -10/Materials | Entered Mines 1779 | -10/Mines | Learned Materials stockpile data 1882 | -10/Mines | Deemed a non-threat by the Exiles lab entrance 1883 | -10/Mines | Discovered new exit (range 5) 2020 | -10/Mines | Entered Exiles 2020 | -10/Exiles | Accompanied by 1 ally 2034 | -10/Exiles | Discovered new exit (range 15) 2050 | -10/Exiles | Led the pair of lost Derelicts to a safe place 2057 | -10/Exiles | Met 8R-AWN 2071 | -10/Exiles | Met EX-HEX 2102 | -10/Exiles | Met EX-BIN 2120 | -10/Exiles | Aligned with FarCom system 2120 | -10/Exiles | Given EX-Vault access code 2153 | -10/Exiles | Opened EX-Vault 2161 | -10/Exiles | Found Field Lobotomy Kit 2180 | -10/Exiles | Warned to stay clear of 0b10 Research branches 2191 | -10/Exiles | Exiles lab attacked by MAIN.C 2235 | -10/Exiles | Discovered new exit (range 14) 2247 | -10/Exiles | Left Exiles lab with Field Lobotomy Kit 2247 | -10/Exiles | Entered Mines 2271 | -9/Mines | Discovered new exit (range 7) 2279 | -9/Mines | Assisted by bots powering up and referring to "LRC-V3" 2392 | -9/Mines | Met a Derelict shopkeep closing up shop 2574 | -9/Mines | Learned Materials trap positions 2577 | -9/Mines | Assembled infested the area 2582 | -9/Mines | Assisted by a Guerilla fighting off Assembled 2615 | -9/Mines | Crushed by falling debris 2683 | -9/Mines | Assimilated as-70529 with FLK Orb 2787 | -9/Mines | Found a damaged Exp. Sensor Array with a note attached 2791 | -9/Mines | Found Prototype Device 2972 | -9/Mines | Learned location of Zion (-7) 3201 | -9/Mines | Entered Materials 3201 | -8/Materials | Evolved 4 slots: Propulsion x1, Utility x3 3202 | -8/Materials | Loaded intel: 5 trap records 3205 | -8/Materials | Identified Exp. Sensor Array 3496 | -8/Materials | Build established: Scavenger-Mutant 3592 | -8/Materials | Lost 3 parts (1u2w) 4069 | -8/Materials | Build established: Hacker-Mutant 4120 | -8/Materials | Garrison activated, responded to threat 4150 | -8/Materials | Discovered new exit (range 16) 4169 | -8/Materials | Entered Factory 4169 | -7/Factory | Evolved 2 slots: Propulsion x1, Utility x1 4358 | -7/Factory | Repaired ECM Suite 4666 | -7/Factory | Central database locked down 4816 | -7/Factory | Fabricated Cld. VTOL Module (x1) 4871 | -7/Factory | Build established: Hacker-Sprinter 4897 | -7/Factory | Identified exit to Lower Caves 4897 | -7/Factory | Hacking Suite fried by hacking feedback 4939 | -7/Factory | Sucked down chute 4939 | -7/Factory | Entered Waste 4942 | -7/Waste | Spotted C-40 Crusher 4942 | -7/Waste | Spotted C-40 Crusher 4944 | -7/Waste | Spotted C-40 Crusher 4954 | -7/Waste | EMP discharged 4954 | -7/Waste | Spotted C-40 Crusher 4956 | -7/Waste | Spotted C-40 Crusher 4956 | -7/Waste | Discovered new exit (range 10) 4959 | -7/Waste | Entered Factory 4960 | -7/Factory | Identified exit to DSF 4961 | -7/Factory | Entered DSF 4978 | -7/DSF | Additional patrols routed to DSF 5017 | -7/DSF | Lost 3 parts (2n1u) 5051 | -7/DSF | Discovered new exit (range 15) 5065 | -7/DSF | Core integrity fell below 50% 5072 | -7/DSF | Core integrity fell below 20% 5073 | -7/DSF | Destroyed by X-67 Chaingunner with Minigun Last Messages --------------- 05025_ Reaction Control System destroyed. 05028_ Mic. Nuclear Core destroyed. 05028_ Knocked back. 05030_ Lyr. Light Armor Plating destroyed. 05030_ Knocked back. 05034_ Hacking Suite destroyed. 05036_ Critical hit (Blast). 05036_ Knocked back. 05039_ System corrupted: Matter fused (-10). 05043_ Knocked back. 05051_ EXIT=FOUND 05054_ %>7U2O,XWWF| 05057_ X-67 Chaingunner springs to life. 05058_ Xenon Bombardment Thruster destroyed. 05067_ Slammed into X-67 Chaingunner. 05070_ Slammed into G-47 Trooper. 05073_ Chainsword destroyed. Map ----- +----------------------------------------------------+ | ????????# #?######## [[######### | | ???????#[ ????????# [[#??????# | | ???????#[ ????????# [[#??????# | | ???????## ##???????### ###??????## | | ????????[ [????????#!! !????????#= | | ????????[ [????????#!! !!???????#= | | ????????[ [?????????!! !!???????#= | | ???????## #????###?### ########### | | ???????? ## ??#!!!?## ###!!!# # | | ???????? ## #!!!## ##!!!" %# | | ????????= % | | ????????= % % | | ??????????? % | | ????????????# #!!!## ##!!!#!!!# | | ????????????????#????## ###!!!#!!!# | | ????????????????????### ########### | | ????????????????????#!! ==#???????? | | ????????????????????#!! ==#???????? | | ????????????????????#!! H ==#???????? | | ???????#??g?????????### ###???????? | | ???????# ???????????# % !!#???????? | | ???????# ??????????# !!#???????? | | ????????# ??######## % !!#???????? | | ??????### #?#]]#]]]### ###???????? | | ??????#"" g ##]]#]]]### ###???????? | | ????""""" g@ x #???????? | | ??????#""<% xg #???????? | | ??????#"""""##]]#[[[#[[ #???????? | | ??????#"""""?########[[ #???????? | | ??????####"#????????#########???????? | | ?????????#"?????????????????????????? | | ?????????""?????????????????????????? | | ????????????????????????????????????? | | ????????????????????????????????????? | | ????????????????????????????????????? | | ????????????????????????????????????? | | ????????????????????????????????????? | | | | | | | | | | | | | | | | | | | | | | | | | | | +----------------------------------------------------+ Best States ------------- Heat Dissipation 34 Energy Generation 15 Energy Capacity 250 Matter Stores 300 Matter Capacity 300 Sight Range 16 Terrain Scan Density 10 ECM Strength 1 Jamming Range 12 Armor Coverage 225 Evasion (%) 71 Offensive Hacking 30 Item Schematics ----------------- Cld. VTOL Module | -7/Factory | Hacked Robot Schematics ------------------ None Fabricated ------------ Cld. VTOL Module | x1 | -7/Factory Repaired ---------- ECM Suite | 15% | -7/Factory Studied --------- None Alien Tech Used ----------------- None Achievements -------------- Heavy Suspicion Overwhelming Sixth Sense There's More Where That Came From Challenges ------------ None Game ------ Seed HybridDirectedBiocell Manual? 0 Play Time 00:52:45 Cumulative 43.7 hours Start 2025.12.01 @ 20:53:15 End 2025.12.01 @ 22:19:01 Sessions 1 Manual Loads 0 Difficulty Rogue Special Mode None Game No. 105 Rogue 98 Adventurer 7 Explorer 0 Win Type - Total 1 Types 1/0/0/0/0/0/0/0/0/0 Lore% 18 Gallery% 34 Achievement% 19 Wizard Run 0 Options --------- Layout 0 ASCII 0 Keyboard 1 Movement Vi Keybinds 0 Fullscreen 1 Font 18/SmallcapsGlow Map View 112x50 Zoom Use 0% Tactical HUD 1 Map Filters NONE Filters NONE Steam X RUN: fbdb88e0-f4d6-4dd5-9a46-39438b05dade